Cogmind - Beta 15 *** ADVENTURER MODE // 2025.08.24 @ 11:41:01 Player: Forke Result: Destroyed by 7G-FFS(h) with Assault Rifle Performance ------------- Evolutions (0) 0 Regions Visited (3) 600 Robots Destroyed (9) 45 Value Destroyed (338) 338 Prototype IDs (0) 0 Alien Tech Used (0) 0 Bonus (800) 800 TOTAL SCORE: 1783 Bonus ------- Registered with UFD 300 Met Optimus in HQ 500 Cogmind --------- Core Integrity 0/250 Matter 299/300 Energy 140/140 System Corruption 0% Temperature Cool (0) Movement Walking (190) Ox1 Location -7/Scraptown Parts ------- > --- POWER (1) -------- Light Deuterium Engine > --- PROPULSION (2) --- Aluminum Leg Airjet > --- UTILITY (2) ------ Improved Heat Sink Small Storage Unit > --- WEAPON (2) ------- EM Pulse Gun Bolt Gun > --- INVENTORY (8) ---- Light Deuterium Engine Combat Airjet Scrap Suit Makeshift Light Armor Plating Makeshift Thermal Plating Overtuned Coil Gun Chainsword Peak State ------------ > --- POWER ------------ Light Ion Engine > --- PROPULSION ------- Overtuned Huge Scrapsphere > --- UTILITY ---------- Small Storage Unit Visual Processing Unit > --- WEAPON ----------- Plasma Cannon Chainsword > --- INVENTORY -------- Airjet Combat Airjet Combat Airjet Improved Heat Sink Makeshift Thermal Plating Overtuned Barrage Gun Overtuned Coil Gun Battle Cannon [Rating: 27] Favorites ----------- Power Light Ion Engine Engine Light Ion Engine Propulsion Combat Airjet Leg Aluminum Leg Wheel Wheel Hover Unit Combat Airjet Utility Small Storage Unit Device ECM Suite Storage Small Storage Unit Processor Visual Processing Unit Protection Makeshift Light Armor Plating Weapon Light Assault Rifle Energy Gun EM Pulse Gun Energy Cannon Plasma Cannon Ballistic Gun Light Assault Rifle Slashing Weapon Chainsword Build | -11 -10 -10 -7 ------- Run | Yrd Mat Sub Scr Slots Evolved . | . . . . Power . | . . . . Propulsion . | . . . . Utility . | . . . . Weapon . | . . . . Parts Attached 27 | 10 3 1 13 Power 3 | 2 . . 1 Engine 3 | 2 . . 1 Core . | . . . . Reactor . | . . . . Propulsion 7 | 4 . . 3 Treads . | . . . . Leg 1 | . . . 1 Wheel 3 | 2 . . 1 Hover 3 | 2 . . 1 Flight . | . . . . Utility 5 | 1 2 . 2 Device 2 | . 1 . 1 Storage 1 | 1 . . . Processor 1 | . 1 . . Hackware . | . . . . Protection 1 | . . . 1 Artifact . | . . . . Weapon 12 | 3 1 1 7 Energy Gun 3 | 1 1 . 1 Energy Cannon 1 | . . . 1 Ballistic Gun 7 | 2 . 1 4 Ballistic Cannon . | . . . . Launcher . | . . . . Special Weapon . | . . . . Impact Weapon . | . . . . Slashing Weapon 1 | . . . 1 Piercing Weapon . | . . . . Special Melee Weapon . | . . . . Unidentified Prototypes . | . . . . Parts Lost 2 | 1 . . 1 Power 1 | . . . 1 Propulsion . | . . . . Utility . | . . . . Weapon 1 | 1 . . . Highest Loss Streak 1 | 1 . . 1 To Critical Strikes . | . . . . Average Backups 6 | 5 7 7 7 Power . | . . . . Propulsion 3 | 4 6 4 2 Utility . | . . 1 2 Weapon 1 | . . 1 2 Tool/Special . | . . . . Unused Backups 13 | . . 4 9 Power 2 | . . . 2 Propulsion 6 | . . 4 2 Utility 2 | . . . 2 Weapon 3 | . . . 3 Tool/Special . | . . . . Average Slot Usage (%) 94 | . 91 100 93 Engine 13 | . 14 14 13 Wheel 1 | . . . 2 Hover 23 | . 28 28 22 Device 1 | . 4 . . Storage 14 | . 14 14 14 Processor 11 | . 2 14 12 Energy Gun 3 | . 8 14 . Energy Cannon 5 | . . . 6 Ballistic Gun 11 | . 18 14 9 Slashing Weapon 5 | . . . 7 Peak Build Rating 27 | 14 16 18 27 Average Rating 14 | 6 14 17 22 On Entrance 12 | . 14 16 18 Naked Turns . | . . . . Heaviest Build 24 | 11 13 14 24 Greatest Support 24 | 24 24 24 24 Greatest Overweight (x) 4 | . . . 4 Average Overweight (x) . | . . . . Largest Inventory Capacity 8 | 8 8 8 8 Average Capacity 7 | 7 8 8 8 Most Carried 8 | 8 8 8 8 Average Carried 6 | 5 7 7 7 Final Capacity 8 | 8 8 8 8 Final Carried 8 | 7 8 8 8 Class Distribution -------------------- 91% | Mutant 8% | Scavenger-Mutant Dominant Class ---------------- Mutant | -10/Materials Scavenger-Mutant | -10/Subcaves Mutant | -7/Scraptown Resources | -11 -10 -10 -7 ----------- Run | Yrd Mat Sub Scr Matter Collected 694 | 332 17 62 283 Remotely . | . . . . Salvage Created 467 | 73 17 118 259 Parts 22 | 1 2 6 13 Haulers Intercepted . | . . . . Recyclers Shooed . | . . . . Parts Field Recycled . | . . . . Retrieved Matter . | . . . . Parts Self-Destructed 4 | . . 4 . Prevented . | . . . . Kills | -11 -10 -10 -7 ------- Run | Yrd Mat Sub Scr Combat Hostiles Destroyed 11 | 5 . 2 4 Guns 11 | 5 . 2 4 Classes Destroyed 9 | 2 1 1 5 Watcher 1 | . 1 . . Demolisher 1 | 1 . . . Subdweller 2 | . . 2 . Explorer 1 | . . . 1 Guru 1 | . . . 1 Scrapper 1 | . . . 1 Zionite 1 | . . . 1 Assembled 4 | 4 . . . Mutant 1 | . . . 1 Best Kill Streak 4 | 4 1 1 2 Combat Bots Only 4 | 4 . 1 2 Max Kills in Single Turn 1 | 1 1 1 1 Gunslinging . | . . . . Exploded . | . . . . Melee . | . . . . Uniques/NPCs Destroyed . | . . . . Combat | -11 -10 -10 -7 -------- Run | Yrd Mat Sub Scr Hostile Shots Fired 78 | 55 1 2 20 Missed 23 | 19 . . 4 Hits 55 | 36 1 2 16 Melee 4 | 2 . . 2 Projectile 51 | 34 1 2 14 AOE 6 | 6 . . . Critical Strikes 3 | 2 . . 1 Damage Taken 806 | 534 11 35 226 Core 260 | 209 11 20 20 Absorbed by Shields . | . . . . Ignored by Resistances 227 | 151 3 10 63 Regen/Repaired (Parts) 79 | . 79 . . Core Remaining (%) 16 | 16 . . . Volleys Fired 50 | 21 3 9 17 Largest 2 | 2 2 2 2 Hottest 112 | 60 60 70 112 Shots Fired 92 | 38 6 18 30 Gun 80 | 38 6 18 18 Cannon 12 | . . . 12 Launcher . | . . . . Special . | . . . . Kinetic 64 | 37 3 9 15 Thermal 12 | . . . 12 Explosive . | . . . . Electromagnetic 16 | 1 3 9 3 Robot Hit Streak 25 | 8 5 19 25 Robot Miss Streak 4 | 4 1 . 2 Penetration Max 1 | . . . 1 Secondary Targets 3 | 2 . 1 . Max Gunslinging Chain 1 | 1 . 1 . Shots Hit Robots 67 | 25 5 14 23 Core Hits 26 | 12 2 3 9 Critical Kills 2 | . . . 2 Critical Parts Destroyed 1 | . . . 1 Critical Strikes 3 | . . . 3 Destroy 3 | . . . 3 Melee Attacks . | . . . . Impact . | . . . . Slashing . | . . . . Piercing . | . . . . Sneak Attacks . | . . . . Combat Hostiles . | . . . . Follow-up Attacks . | . . . . Damage Inflicted 834 | 204 70 110 450 Guns 691 | 204 70 110 307 Cannons 143 | . . . 143 Explosions . | . . . . Melee . | . . . . Ramming . | . . . . Kinetic 584 | 204 26 68 286 Thermal 143 | . . . 143 Explosive . | . . . . Electromagnetic 107 | . 44 42 21 Impact . | . . . . Slashing . | . . . . Piercing . | . . . . Highest Corruption . | . . . . Average Corruption . | . . . . Corruption Purged . | . . . . Corruption Blocked . | . . . . Overload Shots . | . . . . Overflow Damage . | . . . . Projectiles . | . . . . Explosions . | . . . . Melee . | . . . . Knockbacks . | . . . . Impact . | . . . . Kinetic . | . . . . Secondary . | . . . . Self-Inflicted Damage . | . . . . Shots . | . . . . Rammed . | . . . . Targets Rammed . | . . . . Kicked . | . . . . Crushed . | . . . . Highest Temperature 533 | 20 40 . 533 Average Temperature 158 | 18 23 . 179 Received Heat Transfer 174 | 20 9 . 145 Effects 10 | . . . 10 Matter Decay 2 | . . . 2 Damage (major) 8 | . . . 8 Siege Activations . | . . . . Martial Activations . | . . . . Shielding Activations . | . . . . Robots Disrupted . | . . . . Combat Hostiles . | . . . . Robots Corrupted . | . . . . Combat Hostiles . | . . . . Parts Fried . | . . . . Impact Corruptions . | . . . . Robots Melted . | . . . . Combat Hostiles . | . . . . Parts Melted 1 | . . . 1 Heat Transferred 235 | . . . 235 Parts Sabotaged . | . . . . Parts Stolen . | . . . . Parts Stripped . | . . . . Power Chain Reactions . | . . . . Alert | -11 -10 -10 -7 ------- Run | Yrd Mat Sub Scr Maximum Alert Level . | . . . . Low Security (%) 100 | 100 100 . . Level 1 . | . . . . Level 2 . | . . . . Level 3 . | . . . . Level 4 . | . . . . Level 5 . | . . . . High Security . | . . . . Max Security . | . . . . Peak Influence 30 | 30 7 . . Initial . | . . . . Average . | . . . . Influence Increases 37 | 30 7 . . Destroy 0b10 Robot/C 20 | 20 . . . Destroy 0b10 Robot/NC 5 | . 5 . . Destroy Leader 12 | 10 2 . . Influence Decreases 37 | 30 7 . . Time Decay 37 | 30 7 . . Squads Dispatched . | . . . . Investigation . | . . . . Extermination . | . . . . Reinforcement . | . . . . Assault . | . . . . Garrison . | . . . . Intercept . | . . . . Searches Triggered . | . . . . Construction Impeded . | . . . . Haulers Reinforced . | . . . . Active Scanning Responses . | . . . . Cargo Convoy Interrupts . | . . . . Stealth | -11 -10 -10 -7 --------- Run | Yrd Mat Sub Scr Distress Signals . | . . . . Communications Jammed . | . . . . Distress Signals . | . . . . Times Spotted 53 | 26 4 6 17 Peak Tracking Total 22 | 22 3 2 4 Tactical Retreats 2 | 2 . . . Traps | -11 -10 -10 -7 ------- Run | Yrd Mat Sub Scr Traps Triggered . | . . . . Indirectly . | . . . . Trap Hack Attempts . | . . . . Triggered . | . . . . Disarmed . | . . . . Reprogrammed . | . . . . Reused . | . . . . Traps Extracted . | . . . . Installed . | . . . . Triggered . | . . . . Machines | -11 -10 -10 -7 ---------- Run | Yrd Mat Sub Scr Machines Disabled 2 | . . . 2 Max in Single Turn 1 | . . . 1 Machines Repaired . | . . . . Machines Dismantled . | . . . . Machines Sabotaged . | . . . . Overloaded Fab Kills . | . . . . Hacking | -11 -10 -10 -7 --------- Run | Yrd Mat Sub Scr Machines Accessed 5 | . 2 . 3 Terminals . | . . . . Fabricators . | . . . . Repair Stations 1 | . 1 . . Recycling Units 1 | . 1 . . Scanalyzers . | . . . . Garrison Access . | . . . . Total Hacks 31 | . 6 . 25 Successful 29 | . 4 . 25 Failed 2 | . 2 . . Catastrophic . | . . . . Database Lockouts . | . . . . Manual . | . . . . Terminals . | . . . . Fabricators . | . . . . Repair Stations 3 | . 3 . . Recycling Units 3 | . 3 . . Scanalyzers . | . . . . Garrison Access . | . . . . Terminal Hacks 25 | . . . 25 Record 25 | . . . 25 Fabricator Hacks . | . . . . Repair Station Hacks 2 | . 2 . . Scan Component 1 | . 1 . . Repair 1 | . 1 . . Recycling Unit Hacks 2 | . 2 . . Report Inventory 1 | . 1 . . Retrieve Components 1 | . 1 . . Scanalyzer . | . . . . Garrison Access Hacks . | . . . . Unauthorized Hacks . | . . . . Terminals . | . . . . Fabricators . | . . . . Repair Stations . | . . . . Recycling Units . | . . . . Scanalyzers . | . . . . Garrison Access . | . . . . Data Cores Recovered . | . . . . Used . | . . . . Hacking Detections 1 | . 1 . . Full Trace Events . | . . . . Feedback Events . | . . . . Feedback Blocked . | . . . . Robot Schematics Acquired . | . . . . Robots Built . | . . . . Authchips . | . . . . Time . | . . . . Total Robot Build Rating . | . . . . Part Schematics Acquired . | . . . . Parts Built . | . . . . Authchips . | . . . . Time . | . . . . Total Part Build Rating . | . . . . Parts Repaired 1 | . 1 . . Time 26 | . 26 . . Parts Recycled . | . . . . Recycled Matter . | . . . . Retrieved Matter . | . . . . Retrieved Components 2 | . 2 . . Parts Scanalyzed . | . . . . Part Schematics Acquired . | . . . . Parts Damaged . | . . . . Bothacking | -11 -10 -10 -7 ------------ Run | Yrd Mat Sub Scr Used RIF Installer . | . . . . Robots Hacked . | . . . . Non-combat . | . . . . Combat . | . . . . Robot Hacks Applied . | . . . . Relay Couplers Released . | . . . . Fabnet Peak Effective % . | . . . . Robots Rewired . | . . . . Allies Hacked . | . . . . Hacks Repelled . | . . . . Allies | -11 -10 -10 -7 -------- Run | Yrd Mat Sub Scr Total Allies . | . . . . Largest Group . | . . . . Highest-Rated Group . | . . . . Highest-Rated Ally . | . . . . Total Orders . | . . . . Ally Attacks . | . . . . Total Damage . | . . . . Kills . | . . . . Allies Corrupted . | . . . . Allies Melted 1 | . . . 1 Intel | -11 -10 -10 -7 ------- Run | Yrd Mat Sub Scr Active Infowar (turns) 1466 | . 106 228 1132 Optics 1393 | . 33 228 1132 ECM 73 | . 73 . . Robot Analysis Total . | . . . . Derelict Logs Recovered . | . . . . Drone Launches . | . . . . Drone Recoveries . | . . . . Exploration | -11 -10 -10 -7 ------------- Run | Yrd Mat Sub Scr Turns Passed 3132 | 1428 201 228 1275 Spaces Moved 2374 | 579 226 184 1385 Core 74 | 16 . . 58 Treads . | . . . . Legs 14 | . . . 14 Wheels 596 | 491 . . 105 Hover 1690 | 72 226 184 1208 Flight . | . . . . Fastest Speed 50 | 50 77 77 66 Average Speed 82 | 78 77 77 84 Slowest Speed 250 | 80 77 77 250 Overloaded Moves . | . . . . Propulsion Burnouts . | . . . . Robots Hopped . | . . . . Potential Cave-ins . | . . . . Cave-ins Triggered . | . . . . Exploration Rate (%) 46 | 61 24 15 84 Regions Visited 3 Branch Regions 2 Pre-discovered Areas 1 | . . . 1 Known Exits Taken . | . . . . Unknown Exits Taken 3 | 1 1 1 . Scrap Searched 5 | . . . 5 Spaces Dug . | . . . . Terrain Destroyed 4 | . . . 4 Melee . | . . . . Projectile 4 | . . . 4 AOE . | . . . . Terrain Rammed . | . . . . Walls Destroyed . | . . . . Machines Disabled . | . . . . Actions | -11 -10 -10 -7 --------- Run | Yrd Mat Sub Scr Total 3487 | 1519 247 255 1466 Wait 965 | 889 7 51 18 Move 2371 | 578 225 183 1385 Hop . | . . . . Pick Up 39 | 17 5 5 12 Fast Attach 9 | 1 1 . 7 Attach 11 | 7 2 . 2 Detach 1 | . . . 1 Swap 11 | 3 1 1 6 Drop 30 | 3 3 6 18 Fire 50 | 21 3 9 17 Melee . | . . . . Ram . | . . . . Kick . | . . . . Crush . | . . . . Escape Stasis . | . . . . Rewire . | . . . . Trap . | . . . . Miscellaneous . | . . . . Route ------- -11/Scrapyard -10/Materials -10/Subcaves -7/Scraptown (discovered 2 exits: *Fac x2) History --------- Turn | Location | Event 9 | -11/Scrapyard | Discovered new exit (range 15) 1283 | -11/Scrapyard | Assembled infested the area 1310 | -11/Scrapyard | Core integrity fell below 50% 1353 | -11/Scrapyard | Core integrity fell below 20% 1429 | -11/Scrapyard | Entered Materials 1430 | -10/Materials | Met a group of wandering Federalists 1437 | -10/Materials | Build established: Mutant 1467 | -10/Materials | Repaired Lgt. Assault Rifle 1485 | -10/Materials | Discovered new exit (range 9) 1630 | -10/Materials | Entered Subcaves 1631 | -10/Subcaves | Continued accompanying wandering Federalists (5) 1802 | -10/Subcaves | Shifting Twisted Machinery released Mak. Thermal Plating 1804 | -10/Subcaves | Shifting Twisted Machinery released Battle Cannon 1804 | -10/Subcaves | Shifting Twisted Machinery released Sub. Power Source 1823 | -10/Subcaves | Lost 3 allies 1852 | -10/Subcaves | Wandering Federalist uncovered a shortcut to Scraptown 1858 | -10/Subcaves | Entered Scraptown 1902 | -7/Scraptown | Heard Great Nut preacher, LISTEN AND RECITE! 2050 | -7/Scraptown | Visited The Evicted 2087 | -7/Scraptown | Visited TADAMA 2174 | -7/Scraptown | Visited SPCMW 2326 | -7/Scraptown | Visited UFD Registry 2338 | -7/Scraptown | Visited Cyclists 2366 | -7/Scraptown | Visited Artisan Demo Area 2454 | -7/Scraptown | Discovered new exit (range 5) 2560 | -7/Scraptown | Registered with UFD as "Electroguard" 2591 | -7/Scraptown | Visited Modified Component R&D 2640 | -7/Scraptown | Visited Curators Association 2720 | -7/Scraptown | Visited Scrapoid Pod Storage 2728 | -7/Scraptown | Visited Observation Area 2899 | -7/Scraptown | Met Optimus 2899 | -7/Scraptown | Accepted into 0bPrime 2945 | -7/Scraptown | Civil war broke out across Scraptown 2989 | -7/Scraptown | Found Scrap Suit 3020 | -7/Scraptown | Lost 7 allies 3020 | -7/Scraptown | Identified exit to Factory 3101 | -7/Scraptown | Lost 4 allies 3133 | -7/Scraptown | Destroyed by 7G-FFS(h) with Assault Rifle Last Messages --------------- Acquired Lgt. Deuterium Engine. Bolt penetrates DZ-W10(j). Slug penetrates DZ-W10(j). DZ-W10(j) destroyed. Optimus: This place isn't worth defending, let's get out of here, Electroguard! Our real resources are elsewhere, after all. Acquired 21 matter. Dropped Plasma Cannon. Acquired EM Pulse Gun. Acquired 10 matter. Acquired Lgt. Deuterium Engine. Acquired 10 matter. Dropped Cmb. Airjet. Acquired Aluminum Leg. Acquired 10 matter. Y1-2MY(z): "And I thought Zion was bad!" Bolt penetrates Y1-2MY(z). Y1-2MY(z) destroyed. Acquired 2 matter. Penetrated by Slug. Map ----- +----------------------------------------------------+ | ####???????##### ########### ########### #####=%# | | #???????#"""" """"""""""" """"""""""" """"!*% | | #???????#" !=![! | | #???????#" !%=%! | | #???????#" !![=! | | #???????#" [ | | #???#####" | | #???#"""" """"""""""""""""""""""""""" =! | | #???#"""" """""""""""""""""""""""""""" %[ | | #???#"""" ""###### ################"" ! | | #???#"""" ""# "#????????#"" | | #???#"""" ""# X"#????????#"" | | ###?#"""" ""# "" ##???????##" | | ""#"#"""" ""# ""%/ "" X"##????###" | | """"#""" ""# " " ""#=####" " = | | ""####### "" % /"" % *%!%|% [ = | | ###?????# "" ! ! ! = %[* | | ######### ""# " " ######### " ! | | """ " "" ""#??????### [ | | " # " "" ##????????#" [ | | ""# X"#????????#" | | ""# ##????????#"" | | / ""###### ################"" | | =%!"""""""""""""""""""""""""""" | | =* """" """" """""" "!" """""=* | | *!! x @ =[ =%[ !%[ | | =%= = % !%[!! ! | | ==%! ![ ] !=%! | | #""""#"!%! =%* !! %= =![%= | | #????#"=! [!% =%= ! !=%/ | | #????#""""" " = "" ""[ """""""" "" " | | # ####????####### ########### ########### ####"# | | # #???????????? ???????? ??????? ?"## | | # #?????????? ??????"" """????"" "?# | | # #????????? # # ????""" """"????"[[ !""?# | | # #?????????!?# = # ]#??#"!" """#???"[[ !"??# | | # #???????????#]!!#?!#???""" """#???" !!!!??# | | # #???????????#####?##??#""" """#???"" !!"""?# | | # #???????????????????????""""""???????#####???# | | # #???????????????????????""""""???????????????? | | # #????????????????????????"""""???????????????? | | # #????????????????????????????????????????????? | | # #????????????????????????????????????????????? | | # #????????????????????????????????????????????? | | " #????????????????????????????????????????????? | | " #????????????????????????????????????????????? | | " #????????????????????????????????????????????? | | #????????????????????????????????????????????? | | " #????????????????????????????????????????????? | | " #????????????????????????????????????????????? | +----------------------------------------------------+ Best States ------------- Heat Dissipation 39 Energy Generation 14 Energy Capacity 140 Matter Stores 300 Matter Capacity 300 Sight Range 18 Terrain Scan Density 10 ECM Strength 1 Armor Coverage 100 Resistance: KI 20 Resistance: TH 20 Resistance: EX 20 Resistance: EM 20 Resistance: I 20 Resistance: S 20 Resistance: P 20 Evasion (%) 51 Offensive Hacking 10 Item Schematics ----------------- None Robot Schematics ------------------ None Fabricated ------------ Nothing Repaired ---------- Lgt. Assault Rifle | 1% | -10/Materials Alien Tech Used ----------------- None Achievements -------------- Curiosity Killed The Cat Hunted Challenges ------------ None Game ------ Seed CobblerBombArmor Manual? 0 Play Time 01:00:29 Cumulative 22.2 hours Start 2025.08.24 @ 09:27:05 End 2025.08.24 @ 11:41:01 Sessions 1 Manual Loads 0 Difficulty Adventurer Special Mode None Game No. 6 Rogue 0 Adventurer 6 Explorer 0 Win Type - Total 0 Types 0/0/0/0/0/0/0/0/0/0 Lore% 11 Gallery% 17 Achievement% 19 Wizard Run 0 Options --------- Layout 0 ASCII 0 Keyboard 0 Movement Mouse Keybinds 0 Fullscreen 1 Font 36/Smallcaps Map View 76x50 Zoom Use 0% Tactical HUD 0 Map Filters NONE Filters NONE Steam 1 RUN: cfb5d961-5906-4dc0-ac75-9c7875574e34